[Event "*** Titled Tuesday Blitz"]
[Site "Chess.com"]
[Date "2021.02.09"]
[Round "10"]
[White "SARGISMV"]
[Black "Anna_ChessMate"]
[Result "0-1"]
[WhiteElo "2444"]
[BlackElo "2574"]
[TimeControl "180+1"]
[EndTime "11:55:25 PST"]
[Termination "Anna_ChessMate won by resignation"]

1. d4 {[%clk 0:03:00.9]} 1... Nf6 {[%clk 0:02:58.4]} 2. c4 {[%clk 0:02:56.7]}
2... g6 {[%clk 0:02:57.7]} 3. Nc3 {[%clk 0:02:56.5]} 3... d5 {[%clk 0:02:58.3]}
4. cxd5 {[%clk 0:02:55.8]} 4... Nxd5 {[%clk 0:02:59.2]} 5. e4 {[%clk 0:02:55.8]}
5... Nxc3 {[%clk 0:02:59.5]} 6. bxc3 {[%clk 0:02:56.7]} 6... Bg7 {[%clk
0:03:00.1]} 7. Be3 {[%clk 0:02:57.3]} 7... c5 {[%clk 0:03:00.6]} 8. Rc1 {[%clk
0:02:55.4]} 8... Qa5 {[%clk 0:02:57]} 9. Qd2 {[%clk 0:02:55]} 9... O-O {[%clk
0:02:53.8]} 10. d5 {[%clk 0:02:50.2]} 10... e6 {[%clk 0:02:50.4]} 11. c4 {[%clk
0:02:47.7]} 11... Qxd2+ {[%clk 0:02:49.1]} 12. Kxd2 {[%clk 0:02:48.1]} 12...
exd5 {[%clk 0:02:50]} 13. exd5 {[%clk 0:02:47.2]} 13... b6 {[%clk 0:02:49.9]}
14. Ne2 {[%clk 0:02:38.7]} 14... Nd7 {[%clk 0:02:41.6]} 15. Nc3 {[%clk
0:02:36.2]} 15... Ne5 {[%clk 0:02:40]} 16. h3 {[%clk 0:02:33.9]} 16... Ba6
{[%clk 0:02:40.3]} 17. Nd1 {[%clk 0:02:12.4]} 17... Rad8 {[%clk 0:02:38]} 18. f4
{[%clk 0:02:07.3]} 18... Nc6 {[%clk 0:02:36.7]} 19. a4 {[%clk 0:01:49.7]} 19...
Rfe8 {[%clk 0:02:33.6]} 20. Bd3 {[%clk 0:01:47.3]} 20... Na5 {[%clk 0:02:15.6]}
21. Ke2 {[%clk 0:01:37.3]} 21... Nb3 {[%clk 0:01:58]} 22. Rb1 {[%clk 0:01:29.2]}
22... Na5 {[%clk 0:01:47.8]} 23. Rc1 {[%clk 0:01:27.1]} 23... Bd4 {[%clk
0:01:48.3]} 24. Kf2 {[%clk 0:01:12.3]} 24... Nb3 {[%clk 0:01:36]} 25. Rc2 {[%clk
0:00:48.4]} 25... Rxd5 {[%clk 0:00:59.2]} 26. cxd5 {[%clk 0:00:34.3]} 26... Bxd3
{[%clk 0:01:00.1]} 27. Ra2 {[%clk 0:00:27.8]} 27... Bc4 {[%clk 0:00:53.1]} 28.
d6 {[%clk 0:00:17.9]} 28... Rd8 {[%clk 0:00:41.4]} 29. Bxd4 {[%clk 0:00:12.1]}
29... Nxd4 {[%clk 0:00:42.3]} 30. Rd2 {[%clk 0:00:08.2]} 30... Rxd6 {[%clk
0:00:42.8]} 31. Ne3 {[%clk 0:00:07.7]} 31... Bb3 {[%clk 0:00:43.2]} 32. a5
{[%clk 0:00:07.8]} 32... b5 {[%clk 0:00:43.7]} 33. g4 {[%clk 0:00:03]} 33... Rf6
{[%clk 0:00:40.3]} 34. Kg3 {[%clk 0:00:02.3]} 34... Re6 {[%clk 0:00:35.9]} 35.
Rc1 {[%clk 0:00:02.7]} 35... Rxe3+ {[%clk 0:00:34.2]} 36. Kf2 {[%clk 0:00:03.3]}
36... Rf3+ {[%clk 0:00:34.1]} 37. Kg2 {[%clk 0:00:02.9]} 37... Bd5 {[%clk
0:00:21.5]} 38. Rxc5 {[%clk 0:00:03.3]} 38... Rd3+ {[%clk 0:00:21.5]} 39. Rxd5
{[%clk 0:00:02.7]} 39... Rxd2+ {[%clk 0:00:22.1]} 40. Kg3 {[%clk 0:00:03.1]}
40... Ne2+ {[%clk 0:00:22.3]} 0-1

[Event "*** Titled Tuesday Blitz"]
[Site "Chess.com"]
[Date "2021.02.09"]
[Round "10"]
[White "Mihnea2017"]
[Black "OriTaichman"]
[Result "0-1"]
[WhiteElo "2413"]
[BlackElo "2543"]
[TimeControl "180+1"]
[EndTime "11:55:38 PST"]
[Termination "OriTaichman won by resignation"]

1. e4 {[%clk 0:03:00.9]} 1... b6 {[%clk 0:02:55.9]} 2. d4 {[%clk 0:02:59.6]}
2... Bb7 {[%clk 0:02:56.1]} 3. Bd3 {[%clk 0:02:59.7]} 3... Nf6 {[%clk 0:02:56]}
4. Qe2 {[%clk 0:02:59.1]} 4... e6 {[%clk 0:02:55.6]} 5. Nd2 {[%clk 0:02:49.6]}
5... d5 {[%clk 0:02:55.7]} 6. e5 {[%clk 0:02:49.4]} 6... Nfd7 {[%clk 0:02:55]}
7. f4 {[%clk 0:02:43.1]} 7... a5 {[%clk 0:02:21.1]} 8. Ngf3 {[%clk 0:02:40.8]}
8... Ba6 {[%clk 0:02:19]} 9. Bxa6 {[%clk 0:02:28.5]} 9... Nxa6 {[%clk
0:02:14.7]} 10. c3 {[%clk 0:02:18.3]} 10... g6 {[%clk 0:01:54.7]} 11. Nf1 {[%clk
0:02:17]} 11... c5 {[%clk 0:01:51.9]} 12. Ne3 {[%clk 0:02:16.2]} 12... c4 {[%clk
0:01:42.1]} 13. O-O {[%clk 0:02:11.3]} 13... b5 {[%clk 0:01:42]} 14. g4 {[%clk
0:02:09.2]} 14... Qb6 {[%clk 0:01:08.5]} 15. Kg2 {[%clk 0:02:03.8]} 15... Be7
{[%clk 0:01:05.3]} 16. Bd2 {[%clk 0:01:56.2]} 16... Rg8 {[%clk 0:00:56.5]} 17.
b3 {[%clk 0:01:49.9]} 17... Qc6 {[%clk 0:00:47.2]} 18. Kf2 {[%clk 0:01:33.8]}
18... Nb6 {[%clk 0:00:42.2]} 19. a4 {[%clk 0:01:02.8]} 19... bxa4 {[%clk
0:00:41.1]} 20. bxc4 {[%clk 0:01:02.1]} 20... Nxc4 {[%clk 0:00:35.6]} 21. Nxc4
{[%clk 0:01:01.7]} 21... dxc4 {[%clk 0:00:35.9]} 22. Ng5 {[%clk 0:00:42.5]}
22... Bxg5 {[%clk 0:00:33.8]} 23. fxg5 {[%clk 0:00:42.5]} 23... Nc7 {[%clk
0:00:29.5]} 24. Kg3 {[%clk 0:00:37.6]} 24... Nd5 {[%clk 0:00:26.2]} 25. Qf3
{[%clk 0:00:32.8]} 25... Rf8 {[%clk 0:00:22.9]} 26. Bc1 {[%clk 0:00:32.7]} 26...
Ra7 {[%clk 0:00:22]} 27. Ba3 {[%clk 0:00:32.5]} 27... Rg8 {[%clk 0:00:20.5]} 28.
Bc5 {[%clk 0:00:31.1]} 28... Rb7 {[%clk 0:00:20.7]} 29. Rfb1 {[%clk 0:00:27.6]}
29... Rb3 {[%clk 0:00:19.4]} 30. Rxb3 {[%clk 0:00:24.6]} 30... axb3 {[%clk
0:00:18.9]} 31. Rxa5 {[%clk 0:00:20.2]} 31... Nb4 {[%clk 0:00:14.8]} 32. Qxc6+
{[%clk 0:00:15.1]} 32... Nxc6 {[%clk 0:00:15]} 33. Rb5 {[%clk 0:00:13.5]} 33...
Kd7 {[%clk 0:00:13.9]} 34. Kf3 {[%clk 0:00:13]} 34... Rb8 {[%clk 0:00:13.8]} 35.
Rxb8 {[%clk 0:00:12.2]} 35... Nxb8 {[%clk 0:00:14.7]} 36. Ba3 {[%clk 0:00:12.2]}
36... Kc6 {[%clk 0:00:14.9]} 37. Ke4 {[%clk 0:00:12.4]} 37... Nd7 {[%clk
0:00:14.2]} 38. Bb2 {[%clk 0:00:11.5]} 38... Nb6 {[%clk 0:00:14.1]} 39. h4
{[%clk 0:00:10.9]} 39... Na4 {[%clk 0:00:14.2]} 40. Bc1 {[%clk 0:00:08.5]} 40...
b2 {[%clk 0:00:14.9]} 41. Bxb2 {[%clk 0:00:08.5]} 41... Nxb2 {[%clk 0:00:15.8]}
42. h5 {[%clk 0:00:07.7]} 42... Na4 {[%clk 0:00:16.3]} 43. h6 {[%clk 0:00:03.9]}
43... Nxc3+ {[%clk 0:00:16]} 44. Ke3 {[%clk 0:00:04.5]} 44... Nd5+ {[%clk
0:00:16.5]} 0-1

[Event "*** Titled Tuesday Blitz"]
[Site "Chess.com"]
[Date "2021.02.09"]
[Round "10"]
[White "K_A_S_T_O_R"]
[Black "GelmanAlexander"]
[Result "1-0"]
[WhiteElo "2795"]
[BlackElo "2609"]
[TimeControl "180+1"]
[EndTime "11:55:39 PST"]
[Termination "K_A_S_T_O_R won on time"]

1. e4 {[%clk 0:03:00.9]} 1... c5 {[%clk 0:02:58.9]} 2. Nf3 {[%clk 0:02:58.4]}
2... e6 {[%clk 0:02:59.2]} 3. d4 {[%clk 0:02:58.3]} 3... cxd4 {[%clk 0:02:59.5]}
4. Nxd4 {[%clk 0:02:59.2]} 4... a6 {[%clk 0:03:00.2]} 5. Bd3 {[%clk 0:02:58.6]}
5... d6 {[%clk 0:03:00.2]} 6. O-O {[%clk 0:02:57.2]} 6... Nf6 {[%clk 0:03:00.6]}
7. c4 {[%clk 0:02:56.6]} 7... g6 {[%clk 0:02:58.1]} 8. Nc3 {[%clk 0:02:56.1]}
8... Bg7 {[%clk 0:02:58.4]} 9. Be2 {[%clk 0:02:56.7]} 9... O-O {[%clk
0:02:57.1]} 10. Nf3 {[%clk 0:02:56.7]} 10... b6 {[%clk 0:02:51.5]} 11. Bf4
{[%clk 0:02:55.9]} 11... e5 {[%clk 0:02:18.2]} 12. Bg5 {[%clk 0:02:27.1]} 12...
Bb7 {[%clk 0:02:18.3]} 13. Qd3 {[%clk 0:02:22.4]} 13... h6 {[%clk 0:02:00.5]}
14. Be3 {[%clk 0:02:17.9]} 14... Nbd7 {[%clk 0:01:51.2]} 15. Rfd1 {[%clk
0:02:08.4]} 15... Nc5 {[%clk 0:01:47.3]} 16. Bxc5 {[%clk 0:02:07.8]} 16... dxc5
{[%clk 0:01:47.9]} 17. Qc2 {[%clk 0:02:04]} 17... Qe7 {[%clk 0:01:39.4]} 18. a4
{[%clk 0:02:02.7]} 18... Rad8 {[%clk 0:01:32.2]} 19. Nd5 {[%clk 0:02:02.6]}
19... Nxd5 {[%clk 0:01:26.8]} 20. cxd5 {[%clk 0:02:03.5]} 20... f5 {[%clk
0:01:24.7]} 21. Qb3 {[%clk 0:01:53.1]} 21... Rd6 {[%clk 0:01:20.9]} 22. Nd2
{[%clk 0:01:51.9]} 22... Kh8 {[%clk 0:01:05]} 23. f3 {[%clk 0:01:43.9]} 23...
Rdf6 {[%clk 0:00:55.7]} 24. Rf1 {[%clk 0:01:38.1]} 24... h5 {[%clk 0:00:54.2]}
25. Nc4 {[%clk 0:01:36.8]} 25... fxe4 {[%clk 0:00:41.5]} 26. fxe4 {[%clk
0:01:35.9]} 26... Bh6 {[%clk 0:00:38.7]} 27. Rxf6 {[%clk 0:01:21.1]} 27... Rxf6
{[%clk 0:00:38]} 28. Rf1 {[%clk 0:01:21.4]} 28... Rxf1+ {[%clk 0:00:33.5]} 29.
Bxf1 {[%clk 0:01:21.3]} 29... Bc8 {[%clk 0:00:12.8]} 30. Qxb6 {[%clk 0:01:19.3]}
30... Kh7 {[%clk 0:00:10]} 31. d6 {[%clk 0:01:12]} 31... Qf7 {[%clk 0:00:10.4]}
32. Qc7 {[%clk 0:01:10.6]} 32... Bd7 {[%clk 0:00:07.9]} 33. Qxc5 {[%clk
0:01:05.4]} 33... Bxa4 {[%clk 0:00:05.7]} 34. Nxe5 {[%clk 0:01:02.9]} 34... Qf4
{[%clk 0:00:05.3]} 35. Nc4 {[%clk 0:00:37.9]} 35... Bb5 {[%clk 0:00:02.5]} 36.
Qd4 {[%clk 0:00:28.5]} 36... Bxc4 {[%clk 0:00:01.7]} 37. Bxc4 {[%clk 0:00:22.9]}
37... Bg7 {[%clk 0:00:02.6]} 38. Qd3 {[%clk 0:00:16.5]} 38... Be5 {[%clk
0:00:02]} 39. d7 {[%clk 0:00:13.1]} 39... Qxh2+ {[%clk 0:00:01.6]} 40. Kf1
{[%clk 0:00:12.2]} 40... Qf4+ {[%clk 0:00:01.9]} 41. Ke2 {[%clk 0:00:12.2]}
41... Qg4+ {[%clk 0:00:01.5]} 42. Ke1 {[%clk 0:00:12.1]} 1-0

[Event "*** Titled Tuesday Blitz"]
[Site "Chess.com"]
[Date "2021.02.09"]
[Round "10"]
[White "serhanberat_ozdemir"]
[Black "MPGM"]
[Result "1-0"]
[WhiteElo "2512"]
[BlackElo "2610"]
[TimeControl "180+1"]
[EndTime "11:55:40 PST"]
[Termination "serhanberat_ozdemir won on time"]

1. e4 {[%clk 0:03:00.9]} 1... e5 {[%clk 0:02:58.3]} 2. Nf3 {[%clk 0:03:01.3]}
2... Nc6 {[%clk 0:02:58]} 3. d4 {[%clk 0:03:02]} 3... exd4 {[%clk 0:02:54.8]} 4.
Bc4 {[%clk 0:03:02.6]} 4... Nf6 {[%clk 0:02:51.8]} 5. e5 {[%clk 0:03:03.1]} 5...
Ne4 {[%clk 0:02:51.9]} 6. O-O {[%clk 0:02:55.9]} 6... Be7 {[%clk 0:02:10.9]} 7.
Re1 {[%clk 0:02:26.1]} 7... Nc5 {[%clk 0:02:09]} 8. Nxd4 {[%clk 0:02:19.8]} 8...
Nxd4 {[%clk 0:01:49.8]} 9. Qxd4 {[%clk 0:02:20.7]} 9... O-O {[%clk 0:01:49]} 10.
Nc3 {[%clk 0:02:17.8]} 10... Ne6 {[%clk 0:01:32.2]} 11. Qe4 {[%clk 0:01:33.6]}
11... d6 {[%clk 0:01:30.3]} 12. exd6 {[%clk 0:01:34.5]} 12... Bxd6 {[%clk
0:01:28.9]} 13. Be3 {[%clk 0:01:22.1]} 13... Re8 {[%clk 0:01:05.8]} 14. Bb3
{[%clk 0:01:21]} 14... Nc5 {[%clk 0:00:55.5]} 15. Qxe8+ {[%clk 0:01:10.6]} 15...
Qxe8 {[%clk 0:00:53.1]} 16. Bxc5 {[%clk 0:01:11.3]} 16... Be6 {[%clk 0:00:48.3]}
17. Bxd6 {[%clk 0:01:04.4]} 17... cxd6 {[%clk 0:00:47.6]} 18. Rad1 {[%clk
0:01:02.3]} 18... Rd8 {[%clk 0:00:45.8]} 19. Rd4 {[%clk 0:00:58.7]} 19... Qd7
{[%clk 0:00:35.8]} 20. Red1 {[%clk 0:00:58.5]} 20... Bxb3 {[%clk 0:00:33.6]} 21.
axb3 {[%clk 0:00:58.3]} 21... g6 {[%clk 0:00:30.7]} 22. h3 {[%clk 0:00:56.3]}
22... Kg7 {[%clk 0:00:28.6]} 23. Ne4 {[%clk 0:00:53.2]} 23... Qc6 {[%clk
0:00:28.3]} 24. c4 {[%clk 0:00:45.1]} 24... Qb6 {[%clk 0:00:23.8]} 25. R1d3
{[%clk 0:00:41.9]} 25... f5 {[%clk 0:00:16]} 26. Nxd6 {[%clk 0:00:40.4]} 26...
Kg8 {[%clk 0:00:16.3]} 27. g4 {[%clk 0:00:26]} 27... fxg4 {[%clk 0:00:15.9]} 28.
hxg4 {[%clk 0:00:26.9]} 28... Rf8 {[%clk 0:00:10.5]} 29. Kg2 {[%clk 0:00:22.9]}
29... Qc6+ {[%clk 0:00:10.3]} 30. f3 {[%clk 0:00:21.5]} 30... b6 {[%clk
0:00:10.1]} 31. Ne4 {[%clk 0:00:18.8]} 31... Qc7 {[%clk 0:00:09.5]} 32. g5
{[%clk 0:00:18.3]} 32... Kh8 {[%clk 0:00:04.9]} 33. Rd7 {[%clk 0:00:18.4]} 33...
Qe5 {[%clk 0:00:04.5]} 34. Rxa7 {[%clk 0:00:08.3]} 34... Qxb2+ {[%clk
0:00:02.9]} 35. Kg3 {[%clk 0:00:06.7]} 35... h6 {[%clk 0:00:02.7]} 36. Nf6
{[%clk 0:00:02.1]} 36... Rxf6 {[%clk 0:00:01.2]} 37. gxf6 {[%clk 0:00:02.1]}
37... Qe5+ {[%clk 0:00:01.4]} 38. f4 {[%clk 0:00:02.6]} 38... Qxf6 {[%clk
0:00:01.7]} 39. Rdd7 {[%clk 0:00:02.7]} 39... Qc3+ {[%clk 0:00:01.5]} 40. Kg4
{[%clk 0:00:03.4]} 1-0

[Event "*** Titled Tuesday Blitz"]
[Site "Chess.com"]
[Date "2021.02.09"]
[Round "10"]
[White "KingCyber19"]
[Black "ajedrez1101"]
[Result "1-0"]
[WhiteElo "2550"]
[BlackElo "2104"]
[TimeControl "180+1"]
[EndTime "11:55:40 PST"]
[Termination "KingCyber19 won by checkmate"]

1. d4 {[%clk 0:02:25.4]} 1... b6 {[%clk 0:02:59.1]} 2. c4 {[%clk 0:02:25.7]}
2... Bb7 {[%clk 0:02:58.4]} 3. Nc3 {[%clk 0:02:26.3]} 3... e6 {[%clk 0:02:58.3]}
4. e4 {[%clk 0:02:26.9]} 4... Bb4 {[%clk 0:02:54.1]} 5. f3 {[%clk 0:02:26.5]}
5... f5 {[%clk 0:02:52.4]} 6. Bd3 {[%clk 0:02:25.1]} 6... Nh6 {[%clk 0:02:35]}
7. Bxh6 {[%clk 0:02:22.5]} 7... Qh4+ {[%clk 0:02:34.6]} 8. g3 {[%clk 0:02:16.9]}
8... Qxh6 {[%clk 0:02:34.7]} 9. Qd2 {[%clk 0:02:15.5]} 9... Qxd2+ {[%clk
0:02:33.7]} 10. Kxd2 {[%clk 0:02:16.4]} 10... fxe4 {[%clk 0:02:25.6]} 11. fxe4
{[%clk 0:02:07.4]} 11... Nc6 {[%clk 0:02:22.1]} 12. Ne2 {[%clk 0:02:01.2]} 12...
e5 {[%clk 0:02:21.7]} 13. d5 {[%clk 0:01:58.4]} 13... Nd4 {[%clk 0:02:21.6]} 14.
a3 {[%clk 0:01:57.7]} 14... Nb3+ {[%clk 0:02:15.7]} 15. Kc2 {[%clk 0:01:31.8]}
15... Nxa1+ {[%clk 0:02:14.6]} 16. Rxa1 {[%clk 0:01:32.7]} 16... Bxc3 {[%clk
0:02:11]} 17. Nxc3 {[%clk 0:01:32.2]} 17... d6 {[%clk 0:02:11.4]} 18. Rf1 {[%clk
0:01:30.7]} 18... Rf8 {[%clk 0:02:10.9]} 19. Rxf8+ {[%clk 0:01:30.3]} 19... Kxf8
{[%clk 0:02:11.1]} 20. Nb5 {[%clk 0:01:28.7]} 20... Ke7 {[%clk 0:02:06]} 21.
Nxc7 {[%clk 0:01:16.7]} 21... Rf8 {[%clk 0:02:00.2]} 22. Ne6 {[%clk 0:01:11.9]}
22... Rf2+ {[%clk 0:01:59.8]} 23. Kc3 {[%clk 0:01:12.1]} 23... g6 {[%clk
0:01:56.7]} 24. b4 {[%clk 0:00:58.9]} 24... Bc8 {[%clk 0:01:46]} 25. Nc7 {[%clk
0:00:40.8]} 25... a6 {[%clk 0:01:31.5]} 26. Na8 {[%clk 0:00:26.8]} 26... Rxh2
{[%clk 0:01:19.8]} 27. Nxb6 {[%clk 0:00:25.8]} 27... Bg4 {[%clk 0:01:14.7]} 28.
c5 {[%clk 0:00:21.8]} 28... Rg2 {[%clk 0:01:11.7]} 29. Nc4 {[%clk 0:00:06.7]}
29... dxc5 {[%clk 0:01:04.3]} 30. bxc5 {[%clk 0:00:06.8]} 30... Rxg3 {[%clk
0:01:04.9]} 31. d6+ {[%clk 0:00:06.9]} 31... Kd8 {[%clk 0:00:59.3]} 32. c6
{[%clk 0:00:03.4]} 32... Be2 {[%clk 0:00:57.8]} 33. Nxe5 {[%clk 0:00:03.7]}
33... Bxd3 {[%clk 0:00:57.5]} 34. Nxd3 {[%clk 0:00:04.6]} 34... h5 {[%clk
0:00:34]} 35. Kd4 {[%clk 0:00:03.7]} 35... h4 {[%clk 0:00:26.9]} 36. e5 {[%clk
0:00:03.4]} 36... Rxd3+ {[%clk 0:00:17.6]} 37. Kxd3 {[%clk 0:00:03.4]} 37... h3
{[%clk 0:00:18.2]} 38. e6 {[%clk 0:00:03.9]} 38... h2 {[%clk 0:00:18.2]} 39. e7+
{[%clk 0:00:04.5]} 39... Ke8 {[%clk 0:00:18.5]} 40. c7 {[%clk 0:00:05]} 40...
h1=Q {[%clk 0:00:09]} 41. c8=Q+ {[%clk 0:00:05]} 41... Kf7 {[%clk 0:00:08.2]}
42. e8=Q+ {[%clk 0:00:05.9]} 42... Kg7 {[%clk 0:00:08.2]} 43. Qe7+ {[%clk
0:00:06.1]} 43... Kh6 {[%clk 0:00:06.9]} 44. Qh8# {[%clk 0:00:06.8]} 1-0

[Event "*** Titled Tuesday Blitz"]
[Site "Chess.com"]
[Date "2021.02.09"]
[Round "10"]
[White "fabianvivasz"]
[Black "profofchess"]
[Result "1-0"]
[WhiteElo "2347"]
[BlackElo "2396"]
[TimeControl "180+1"]
[EndTime "11:55:41 PST"]
[Termination "fabianvivasz won by resignation"]

1. e4 {[%clk 0:03:00.9]} 1... e6 {[%clk 0:02:58.7]} 2. d4 {[%clk 0:03:00.3]}
2... d5 {[%clk 0:02:58.4]} 3. Nd2 {[%clk 0:03:00.9]} 3... e5 {[%clk 0:02:58.4]}
4. dxe5 {[%clk 0:02:57.1]} 4... dxe4 {[%clk 0:02:57.3]} 5. Nxe4 {[%clk
0:02:46.9]} 5... Qxd1+ {[%clk 0:02:56.1]} 6. Kxd1 {[%clk 0:02:47.8]} 6... Nc6
{[%clk 0:02:56.3]} 7. f4 {[%clk 0:02:38.8]} 7... f6 {[%clk 0:02:55.7]} 8. exf6
{[%clk 0:02:37.1]} 8... Nxf6 {[%clk 0:02:56.2]} 9. Nxf6+ {[%clk 0:02:34.3]} 9...
gxf6 {[%clk 0:02:57.1]} 10. Be2 {[%clk 0:01:57.1]} 10... Rg8 {[%clk 0:02:45.6]}
11. Bh5+ {[%clk 0:01:53.7]} 11... Kd8 {[%clk 0:02:41.6]} 12. g3 {[%clk
0:01:49.1]} 12... Bc5 {[%clk 0:02:19.3]} 13. Nf3 {[%clk 0:01:39.7]} 13... Bh3
{[%clk 0:02:14.2]} 14. Re1 {[%clk 0:01:36.8]} 14... Kd7 {[%clk 0:02:07.5]} 15.
Be3 {[%clk 0:01:28.6]} 15... Be7 {[%clk 0:01:32.4]} 16. Ke2 {[%clk 0:01:15.5]}
16... Rad8 {[%clk 0:01:19.8]} 17. Rad1+ {[%clk 0:01:13.6]} 17... Kc8 {[%clk
0:01:20.1]} 18. Rxd8+ {[%clk 0:01:04.3]} 18... Rxd8 {[%clk 0:01:21]} 19. g4
{[%clk 0:00:54.3]} 19... Nb4 {[%clk 0:01:05.5]} 20. Rc1 {[%clk 0:00:07.1]} 20...
Rg8 {[%clk 0:00:43.9]} 21. a3 {[%clk 0:00:05.6]} 21... Nd5 {[%clk 0:00:43.4]}
22. Rg1 {[%clk 0:00:04.6]} 22... Nxe3 {[%clk 0:00:42.6]} 23. Kxe3 {[%clk
0:00:05.2]} 23... Bc5+ {[%clk 0:00:41.6]} 24. Nd4 {[%clk 0:00:02.6]} 24... Rg7
{[%clk 0:00:32.2]} 25. c3 {[%clk 0:00:02.4]} 25... f5 {[%clk 0:00:22.8]} 26. Kf3
{[%clk 0:00:02]} 26... fxg4+ {[%clk 0:00:20.6]} 27. Bxg4+ {[%clk 0:00:02.9]}
27... Bxg4+ {[%clk 0:00:19.1]} 28. Rxg4 {[%clk 0:00:03.8]} 28... Re7 {[%clk
0:00:16]} 29. Rg8+ {[%clk 0:00:04]} 29... Kd7 {[%clk 0:00:16.4]} 30. Rh8 {[%clk
0:00:03.6]} 30... Rf7 {[%clk 0:00:15.1]} 31. f5 {[%clk 0:00:03.4]} 31... Bd6
{[%clk 0:00:14.5]} 32. Kg4 {[%clk 0:00:03.3]} 32... Bxh2 {[%clk 0:00:14.3]} 33.
Nf3 {[%clk 0:00:04.1]} 33... Bd6 {[%clk 0:00:14.2]} 34. Ng5 {[%clk 0:00:04.7]}
34... Rg7 {[%clk 0:00:09.5]} 35. Rxh7 {[%clk 0:00:05.2]} 35... Rxh7 {[%clk
0:00:06.3]} 36. Nxh7 {[%clk 0:00:06.1]} 36... Ke7 {[%clk 0:00:06.2]} 37. f6+
{[%clk 0:00:06.1]} 37... Kf7 {[%clk 0:00:05.9]} 38. Kf5 {[%clk 0:00:06.4]} 38...
a5 {[%clk 0:00:05.1]} 39. Ng5+ {[%clk 0:00:07]} 39... Kf8 {[%clk 0:00:04.8]} 40.
Ke6 {[%clk 0:00:07.4]} 40... a4 {[%clk 0:00:02.7]} 41. f7 {[%clk 0:00:07.5]}
41... Kg7 {[%clk 0:00:02.4]} 42. Ne4 {[%clk 0:00:07.4]} 42... Kf8 {[%clk
0:00:02.3]} 43. Nxd6 {[%clk 0:00:07.1]} 43... cxd6 {[%clk 0:00:02.8]} 44. c4
{[%clk 0:00:07.5]} 44... b6 {[%clk 0:00:02.3]} 45. Kxd6 {[%clk 0:00:07.9]} 45...
Kxf7 {[%clk 0:00:02.7]} 46. Kc6 {[%clk 0:00:08.5]} 1-0

[Event "*** Titled Tuesday Blitz"]
[Site "Chess.com"]
[Date "2021.02.09"]
[Round "10"]
[White "lelajavakhishvili"]
[Black "juancruzarias"]
[Result "0-1"]
[WhiteElo "2496"]
[BlackElo "2632"]
[TimeControl "180+1"]
[EndTime "11:55:42 PST"]
[Termination "juancruzarias won on time"]

1. d4 {[%clk 0:03:00.9]} 1... Nf6 {[%clk 0:02:58.5]} 2. c4 {[%clk 0:03:00.9]}
2... c5 {[%clk 0:02:59.1]} 3. d5 {[%clk 0:03:00.6]} 3... e5 {[%clk 0:02:59.6]}
4. Nc3 {[%clk 0:02:59.9]} 4... d6 {[%clk 0:03:00.2]} 5. g3 {[%clk 0:03:00.1]}
5... Nbd7 {[%clk 0:03:00]} 6. Bg2 {[%clk 0:03:00.3]} 6... Be7 {[%clk 0:03:00.3]}
7. e4 {[%clk 0:03:00.5]} 7... O-O {[%clk 0:02:57.9]} 8. Nge2 {[%clk 0:03:00.6]}
8... Ne8 {[%clk 0:02:56.5]} 9. O-O {[%clk 0:02:55.4]} 9... Nc7 {[%clk 0:02:57]}
10. f4 {[%clk 0:02:55.5]} 10... Rb8 {[%clk 0:02:55.3]} 11. a4 {[%clk 0:02:32.5]}
11... b6 {[%clk 0:02:52.2]} 12. Bh3 {[%clk 0:02:08.6]} 12... Bf6 {[%clk
0:02:45.2]} 13. f5 {[%clk 0:01:57.9]} 13... a6 {[%clk 0:02:40.4]} 14. Kh1 {[%clk
0:01:57.6]} 14... b5 {[%clk 0:02:40.4]} 15. b3 {[%clk 0:01:51.2]} 15... bxc4
{[%clk 0:02:37.5]} 16. bxc4 {[%clk 0:01:51.1]} 16... Rb4 {[%clk 0:02:38]} 17.
Qd3 {[%clk 0:01:50.3]} 17... Nb6 {[%clk 0:01:51.4]} 18. Ba3 {[%clk 0:01:44.8]}
18... a5 {[%clk 0:01:49.8]} 19. Bxb4 {[%clk 0:01:40.5]} 19... cxb4 {[%clk
0:01:44.6]} 20. Nb5 {[%clk 0:01:40]} 20... Na6 {[%clk 0:01:43.8]} 21. g4 {[%clk
0:01:21.5]} 21... Nc5 {[%clk 0:01:43]} 22. Qf3 {[%clk 0:01:19.1]} 22... Nxc4
{[%clk 0:01:37.7]} 23. Rfd1 {[%clk 0:01:15.1]} 23... Ba6 {[%clk 0:01:30.1]} 24.
Bf1 {[%clk 0:01:11.7]} 24... Nb6 {[%clk 0:01:19.9]} 25. Ng3 {[%clk 0:01:09.9]}
25... Nbxa4 {[%clk 0:01:17.8]} 26. Nh5 {[%clk 0:01:06.3]} 26... Bxb5 {[%clk
0:01:16.4]} 27. Bxb5 {[%clk 0:01:05.4]} 27... Nc3 {[%clk 0:01:17]} 28. g5 {[%clk
0:00:44.4]} 28... Bxg5 {[%clk 0:01:12.6]} 29. Rg1 {[%clk 0:00:43.2]} 29... f6
{[%clk 0:00:53.7]} 30. Nxg7 {[%clk 0:00:24]} 30... Kxg7 {[%clk 0:00:52.7]} 31.
h4 {[%clk 0:00:24.3]} 31... N3xe4 {[%clk 0:00:43.9]} 32. Be2 {[%clk 0:00:14.5]}
32... a4 {[%clk 0:00:39.7]} 33. Rg4 {[%clk 0:00:14.1]} 33... h6 {[%clk
0:00:39.6]} 34. Rag1 {[%clk 0:00:08.9]} 34... Nc3 {[%clk 0:00:30.5]} 35. hxg5
{[%clk 0:00:07.5]} 35... hxg5 {[%clk 0:00:30.2]} 36. R4g2 {[%clk 0:00:04.8]}
36... Rh8+ {[%clk 0:00:30.2]} 37. Rh2 {[%clk 0:00:05.6]} 37... N3e4 {[%clk
0:00:24.9]} 38. Rg2 {[%clk 0:00:04.5]} 38... b3 {[%clk 0:00:22.6]} 39. Bd3
{[%clk 0:00:03.1]} 39... Rxh2+ {[%clk 0:00:19.8]} 40. Rxh2 {[%clk 0:00:03]}
40... Nxd3 {[%clk 0:00:18.8]} 41. Qxd3 {[%clk 0:00:03.2]} 41... b2 {[%clk
0:00:07.8]} 0-1